fUST/lending_fUST_20240922
["ID","MTS","AMOUNT","RATE_DAILY","PERIOD"]
[338854393,1726944647729,-151.0,0.00015718,2]
[338854394,1726944647738,-223.654576,0.00015718,2]
[338854395,1726944647749,-223.654576,0.00015718,2]
[338854396,1726944647759,-259.476723,0.00015718,2]
[338854397,1726944647769,-259.476723,0.00015718,2]
[338854398,1726944647781,-1803.683025,0.00015718,2]
[338854399,1726944647790,-1803.683025,0.00015718,2]
[338854400,1726944647799,-1148.184544,0.00015718,2]
[338854401,1726944647811,-165.922108,0.00015718,2]
[338854402,1726944647825,-1148.184544,0.00015718,2]
[338854403,1726944647836,-165.922108,0.00015718,2]
[338854404,1726944647847,-151.0,0.00015718,2]
[338854405,1726944647857,-247.992498,0.00015718,2]
[338854406,1726944647866,-151.0,0.00015718,2]
[338854407,1726944647876,-247.992498,0.00015718,2]
[338854408,1726944647886,-151.0,0.00015718,2]
[338854409,1726944647895,-151.0,0.00015718,2]
[338854410,1726944647904,-1090.90957902,0.00015744,2]
[338854411,1726944647915,-245.92528213,0.00015969,2]
[338854412,1726944647929,-500.0,0.00015978,2]
[338854413,1726944647940,-568.45,0.00015978,2]
[338854414,1726944647949,-500.0,0.00015978,2]
[338854415,1726944647958,-500.0,0.00015978,2]
[338854416,1726944647967,-500.0,0.00015978,2]
[338854417,1726944647977,-3310.21,0.00015978,2]
[338854418,1726944647986,-1788.69,0.00015978,2]
[338854419,1726944647995,-500.0,0.00015979,2]
[338854420,1726944648004,-500.0,0.00015979,2]
[338854421,1726944648014,-621.6,0.00015979,2]
[338854422,1726944648023,-500.0,0.00015979,2]
[338854423,1726944648034,-500.0,0.00015979,2]
[338854424,1726944648044,-500.0,0.00015979,2]
[338854425,1726944648053,-1044.43,0.00015979,2]
[338854426,1726944648062,-500.0,0.00015979,2]
[338854427,1726944648071,-6582.0,0.00015979,2]
[338854428,1726944648081,-500.0,0.00015979,2]
[338854429,1726944648090,-712.63,0.00015981,2]
[338854430,1726944648100,-500.0,0.00015981,2]
[338854431,1726944648110,-495.43466752,0.00015981,2]
[338854432,1726944648121,-643.44,0.00015981,2]
[338854433,1726944648130,-509.81,0.0001599,2]
[338854434,1726944648139,-500.0,0.0001599,2]
[338854435,1726944648148,-832.77,0.0001599,2]
[338854436,1726944648158,-151.0,0.0001599,2]
[338854437,1726944648167,-151.0,0.0001599,2]
[338854438,1726944648176,-151.0,0.0001599,2]
[338854439,1726944648186,-151.0,0.0001599,2]
[338854440,1726944648196,-812.830489,0.0001599,2]
[338854441,1726944648206,-709.6,0.0001599,2]
[338854442,1726944648215,-500.0,0.0001599,2]
[338854443,1726944648226,-500.0,0.0001599,2]
[338854444,1726944648237,-500.0,0.0001599,2]
[338854445,1726944648247,-500.0,0.0001599,2]
[338854446,1726944648257,-610.16,0.0001599,2]
[338854447,1726944648266,-266.34252852,0.0001599,2]
[338854448,1726944648429,-233.65747148,0.0001599,2]
[338854449,1726944648438,-357.82252852,0.0001599,2]
[338854450,1726944648450,-142.17747148,0.0001599,2]
[338854451,1726944648460,-485.96784552,0.0001599,2]
[338854452,1726944648472,-14.03215448,0.0001599,2]
[338854453,1726944648482,-550.8,0.0001599,2]
[338854454,1726944648492,-500.0,0.00015992,2]
[338854455,1726944648501,-500.0,0.00015992,2]
[338854456,1726944648511,-500.0,0.00015992,2]
[338854457,1726944648522,-500.0,0.00015992,2]
[338854458,1726944648533,-500.0,0.00015992,2]
[338854459,1726944648543,-500.0,0.00015992,2]
[338854460,1726944648553,-500.0,0.00015992,2]
[338854461,1726944648563,-500.0,0.00015992,2]
[338854462,1726944648573,-150.0,0.00016,2]
[338854463,1726944648583,-569.125,0.0001604,2]
[338854464,1726944648592,-500.24901749,0.00016146,2]
[338854465,1726944648604,-245.92528213,0.00016156,2]
[338854466,1726944648614,-524.0,0.00016166,2]
[338854467,1726944648625,-150.0,0.00016166,2]
[338854468,1726944648635,-1216.0,0.00016166,2]
[338854469,1726944648646,-169.618,0.00016166,2]
[338854470,1726944648657,-1553.89268618,0.00016166,2]
[338854471,1726944648754,-500.0,0.0001406,2]
[338854472,1726944648763,-500.0,0.00014335,2]
[338854473,1726944648774,-46491.42531382,0.00016166,2]
[338854474,1726944648784,-150.154,0.00016166,2]
[338854475,1726944648794,-1000.0,0.00016179,2]
[338854476,1726944648804,-688.20230846,0.00016183,2]
[338854477,1726944648814,-876.33839844,0.00016183,2]
[338854478,1726944648830,-1000.0,0.00016183,2]
[338854479,1726944648839,-225.0,0.000162,2]
[338854480,1726944648849,-1000.31559626,0.000162,2]
[338854481,1726944648859,-1000.0,0.000162,2]
[338854482,1726944648868,-1000.0,0.000162,2]
[338854483,1726944648880,-303.89639885,0.00016239,2]
[338854484,1726944648891,-500.0,0.00016252,2]
[338854485,1726944648902,-568.45,0.00016252,2]
[338854486,1726944648912,-500.0,0.00016252,2]
[338854487,1726944648922,-500.0,0.00016252,2]
[338854488,1726944648932,-500.0,0.00016252,2]
[338854489,1726944648943,-3310.21,0.00016252,2]
[338854490,1726944648953,-1788.69,0.00016252,2]
[338854491,1726944648962,-500.0,0.00016253,2]
[338854492,1726944648972,-500.0,0.00016253,2]
[338854493,1726944648982,-621.6,0.00016253,2]
[338854494,1726944648993,-500.0,0.00016253,2]
[338854495,1726944649003,-500.0,0.00016253,2]
[338854496,1726944649013,-500.0,0.00016253,2]
[338854497,1726944649023,-1044.43,0.00016253,2]
[338854498,1726944649033,-500.0,0.00016253,2]
[338854499,1726944649044,-6582.0,0.00016253,2]
[338854500,1726944649054,-500.0,0.00016253,2]
[338854501,1726944649064,-712.63,0.00016255,2]
[338854502,1726944649074,-500.0,0.00016255,2]
[338854503,1726944649083,-643.44,0.00016255,2]
[338854504,1726944649093,-509.81,0.00016264,2]
[338854505,1726944649103,-500.0,0.00016264,2]
[338854506,1726944649113,-832.77,0.00016264,2]
[338854507,1726944649123,-709.6,0.00016264,2]
[338854508,1726944649133,-500.0,0.00016264,2]
[338854509,1726944649143,-500.0,0.00016264,2]
[338854510,1726944649152,-500.0,0.00016264,2]
[338854511,1726944649162,-500.0,0.00016264,2]
[338854512,1726944649171,-610.16,0.00016264,2]
[338854513,1726944649181,-500.0,0.00016264,2]
[338854514,1726944649191,-500.0,0.00016264,2]
[338854515,1726944649202,-500.0,0.00016264,2]
[338854516,1726944649212,-550.8,0.00016264,2]
[338854517,1726944649221,-1013.72926842,0.00016266,2]
[338854518,1726944649231,-500.0,0.00016266,2]
[338854519,1726944649241,-500.0,0.00016266,2]
[338854520,1726944649250,-500.0,0.00016266,2]
[338854521,1726944649260,-500.0,0.00016266,2]
[338854522,1726944649270,-500.0,0.00016266,2]
[338854523,1726944649280,-500.0,0.00016266,2]
[338854524,1726944649289,-500.0,0.00016266,2]
[338854525,1726944649299,-500.0,0.00016266,2]
[338854526,1726944649309,-1000.0,0.00016391,2]
[338854527,1726944649318,-1000.0,0.00016391,2]
[338854528,1726944649329,-1000.0,0.00016391,2]
[338854529,1726944649339,-796.7,0.00016438,2]
[338854530,1726944649350,-200.0,0.00016438,2]
[338854531,1726944649360,-200.0,0.00016438,2]
[338854532,1726944649370,-200.0,0.00016438,2]
[338854533,1726944649380,-200.0,0.00016438,2]
[338854534,1726944649389,-200.0,0.00016438,2]
[338854535,1726944649399,-200.0,0.00016438,2]
[338854536,1726944649410,-200.0,0.00016438,2]
[338854537,1726944649420,-200.0,0.00016438,2]
[338854538,1726944649430,-200.0,0.00016438,2]
[338854539,1726944649440,-570.59395856,0.00016477,2]
[338854540,1726944649450,-1111.04577296,0.00016477,2]
[338854541,1726944649460,-1000.0,0.00016477,2]
[338854542,1726944649469,-411.5288097,0.00016525,2]
[338854543,1726944649479,-500.0,0.00016526,2]
[338854544,1726944649491,-568.45,0.00016526,2]
[338854545,1726944649503,-500.0,0.00016526,2]
[338854546,1726944649513,-500.0,0.00016526,2]
[338854547,1726944649523,-500.0,0.00016526,2]
[338854548,1726944649535,-3310.21,0.00016526,2]
[338854549,1726944649545,-1788.69,0.00016526,2]
[338854550,1726944649555,-500.0,0.00016527,2]
[338854551,1726944649564,-500.0,0.00016527,2]
[338854552,1726944649573,-621.6,0.00016527,2]
[338854553,1726944649583,-200.0,0.00016527,2]
[338854554,1726944649592,-575.07,0.00016527,2]
[338854555,1726944649602,-500.0,0.00016527,2]
[338854556,1726944649611,-500.0,0.00016527,2]
[338854557,1726944649621,-1044.43,0.00016527,2]
[338854558,1726944649631,-262.81972948,0.00016527,2]
[338854559,1726944649640,-6582.0,0.00016527,2]
[338854560,1726944649650,-500.0,0.00016527,2]
[338854561,1726944649660,-712.63,0.00016529,2]
[338854562,1726944649669,-500.0,0.00016529,2]
[338854563,1726944649679,-643.44,0.00016529,2]
[338854564,1726944649689,-509.81,0.00016538,2]
[338854565,1726944649698,-500.0,0.00016538,2]
[338854566,1726944649708,-151.0,0.00016538,2]
[338854567,1726944649717,-459.366355,0.00016538,2]
[338854568,1726944649726,-151.0,0.00016538,2]
[338854569,1726944649736,-459.366355,0.00016538,2]
[338854570,1726944649745,-832.77,0.00016538,2]
[338854571,1726944649756,-709.6,0.00016538,2]
[338854572,1726944649766,-296.188253,0.00016538,2]
[338854573,1726944649775,-296.188253,0.00016538,2]
[338854574,1726944649786,-500.0,0.00016538,2]
[338854575,1726944649796,-231.022922,0.00016538,2]
[338854576,1726944649808,-231.022922,0.00016538,2]
[338854577,1726944649820,-500.0,0.00016538,2]
[338854578,1726944649831,-500.0,0.00016538,2]
[338854579,1726944649841,-500.0,0.00016538,2]
[338854580,1726944649853,-610.16,0.00016538,2]
[338854581,1726944649864,-500.0,0.00016538,2]
[338854582,1726944649874,-500.0,0.00016538,2]
[338854583,1726944649884,-402.1663439,0.00016538,2]
[338854584,1726944649893,-550.8,0.00016538,2]
[338854585,1726944649903,-581.65104271,0.0001654,2]
[338854586,1726944649913,-500.0,0.0001654,2]
[338854587,1726944649924,-500.0,0.0001654,2]
[338854588,1726944649934,-500.0,0.0001654,2]
[338854589,1726944649943,-500.0,0.0001654,2]
[338854590,1726944649953,-500.0,0.0001654,2]
[338854591,1726944649963,-500.0,0.0001654,2]
[338854592,1726944649972,-500.0,0.0001654,2]
[338854593,1726944649982,-151.0,0.00016596,2]
[338854594,1726944649992,-223.730771,0.00016609,2]
[338854595,1726944650001,-169.231418,0.00016609,2]
[338854596,1726944650011,-348.900287,0.00016609,2]
[338854597,1726944650020,-258.604928,0.00016609,2]
[338854598,1726944650030,-169.231416,0.00016609,2]
[338854599,1726944650040,-390.772849,0.00016609,2]
[338854600,1726944650049,-735.210793,0.00016609,2]
[338854601,1726944650058,-794.793885,0.00016609,2]
[338854602,1726944650068,-169.231416,0.00016609,2]
[338854603,1726944650077,-313.922092,0.00016609,2]
[338854604,1726944650087,-1974.7193064,0.00016625,2]
[338854605,1726944650097,-796.7,0.00016762,2]
[338854606,1726944650106,-500.0,0.000168,2]
[338854607,1726944650116,-568.45,0.000168,2]
[338854608,1726944650126,-500.0,0.000168,2]
[338854609,1726944650135,-500.0,0.000168,2]
[338854610,1726944650145,-500.0,0.000168,2]
[338854611,1726944650155,-3310.21,0.000168,2]
[338854612,1726944650164,-1788.69,0.000168,2]
[338854613,1726944650174,-500.0,0.00016801,2]
[338854614,1726944650183,-500.0,0.00016801,2]
[338854615,1726944650193,-621.6,0.00016801,2]
[338854616,1726944650203,-200.0,0.00016801,2]
[338854617,1726944650213,-602.48346368,0.00016801,2]
[338854618,1726944650223,-500.0,0.00016801,2]
[338854619,1726944650232,-1044.43,0.00016801,2]
[338854620,1726944650242,-6582.0,0.00016801,2]
[338854621,1726944650253,-500.0,0.00016801,2]
[338854622,1726944650263,-712.63,0.00016803,2]
[338854623,1726944650273,-500.0,0.00016803,2]
[338854624,1726944650282,-643.44,0.00016803,2]
[338854625,1726944650292,-509.81,0.00016812,2]
[338854626,1726944650301,-500.0,0.00016812,2]
[338854627,1726944650310,-832.77,0.00016812,2]
[338854628,1726944650320,-709.6,0.00016812,2]
[338854629,1726944650332,-500.0,0.00016812,2]
[338854630,1726944650342,-500.0,0.00016812,2]
[338854631,1726944650351,-500.0,0.00016812,2]
[338854632,1726944650361,-500.0,0.00016812,2]
[338854633,1726944650371,-610.16,0.00016812,2]
[338854634,1726944650380,-549.63475698,0.00016812,2]
[338854635,1726944650390,-500.0,0.00016812,2]
[338854636,1726944650400,-550.8,0.00016812,2]
[338854637,1726944650419,-500.0,0.00016814,2]
[338854638,1726944650431,-500.0,0.00016814,2]
[338854639,1726944650443,-500.0,0.00016814,2]
[338854640,1726944650454,-500.0,0.00016814,2]
[338854641,1726944650466,-556.82457343,0.00016814,2]
[338854642,1726944650479,-500.0,0.00016814,2]
[338854643,1726944650493,-500.0,0.00016814,2]
[338854644,1726944650504,-3200.0,0.00016815,2]
[338854645,1726944650693,-150.0,0.00016815,2]
[338854646,1726944650703,-300.0,0.00016815,2]
[338854647,1726944650712,-223.730771,0.00016817,2]
[338854648,1726944650721,-348.900287,0.00016817,2]
[338854649,1726944650731,-258.604928,0.00016817,2]
[338854650,1726944650741,-390.772849,0.00016817,2]
[338854651,1726944650751,-735.210793,0.00016817,2]
[338854652,1726944650761,-794.793885,0.00016817,2]
[338854653,1726944650770,-313.922092,0.00016817,2]
[338854654,1726944650779,-587.0,0.00016863,2]
[338854655,1726944650789,-300.0,0.000169,6]
[338854656,1726944650801,-419.0,0.00017002,2]
[338854657,1726944650811,-223.730771,0.00017024,2]
[338854658,1726944650823,-348.900287,0.00017024,2]
[338854659,1726944650833,-258.604928,0.00017024,2]
[338854660,1726944650843,-390.772849,0.00017024,2]
[338854661,1726944650852,-735.210793,0.00017024,2]
[338854662,1726944650862,-794.793885,0.00017024,2]
[338854663,1726944650880,-313.922092,0.00017024,2]
[338854664,1726944650890,-411.7313822,0.00017025,2]
[338854665,1726944650902,-411.7313822,0.00017025,2]
[338854666,1726944650912,-411.7313822,0.00017025,2]
[338854667,1726944650921,-411.7313822,0.00017025,2]
[338854668,1726944650932,-411.7313822,0.00017025,2]
[338854669,1726944650941,-500.0,0.00017074,2]
[338854670,1726944650950,-568.45,0.00017074,2]
[338854671,1726944650960,-500.0,0.00017074,2]
[338854672,1726944650973,-500.0,0.00017074,2]
[338854673,1726944650982,-500.0,0.00017074,2]
[338854674,1726944650992,-3310.21,0.00017074,2]
[338854675,1726944651003,-1788.69,0.00017074,2]
[338854676,1726944651014,-500.0,0.00017075,2]
[338854677,1726944651023,-500.0,0.00017075,2]
[338854678,1726944651033,-621.6,0.00017075,2]
[338854679,1726944651042,-200.0,0.00017075,2]
[338854680,1726944651051,-500.0,0.00017075,2]
[338854681,1726944651061,-1044.43,0.00017075,2]
[338854682,1726944651070,-6582.0,0.00017075,2]
[338854683,1726944651079,-712.63,0.00017077,2]
[338854684,1726944651088,-500.0,0.00017077,2]
[338854685,1726944651097,-643.44,0.00017077,2]
[338854686,1726944651107,-509.81,0.00017086,2]
[338854687,1726944651116,-500.0,0.00017086,2]
[338854688,1726944651126,-832.77,0.00017086,2]
[338854689,1726944651135,-709.6,0.00017086,2]
[338854690,1726944651145,-796.7,0.00017086,2]
[338854691,1726944651155,-500.0,0.00017086,2]
[338854692,1726944651165,-500.0,0.00017086,2]
[338854693,1726944651175,-500.0,0.00017086,2]
[338854694,1726944651185,-615.11566025,0.00017086,2]
[338854695,1726944651195,-610.16,0.00017086,2]
[338854696,1726944651204,-500.0,0.00017086,2]
[338854697,1726944651213,-550.8,0.00017086,2]
[338854698,1726944651223,-500.0,0.00017088,2]
[338854699,1726944651232,-500.0,0.00017088,2]
[338854700,1726944651242,-500.0,0.00017088,2]
[338854701,1726944651251,-500.0,0.00017088,2]
[338854702,1726944651260,-500.0,0.00017088,2]
[338854703,1726944651269,-500.0,0.00017088,2]
[338854704,1726944651279,-1974.7193064,0.00017125,2]
[338854705,1726944651288,-500.0,0.00017158,2]
[338854706,1726944651298,-500.0,0.00017158,2]
[338854707,1726944651307,-225.0,0.0001716,2]
[338854708,1726944651316,-223.730771,0.00017232,2]
[338854709,1726944651325,-348.900287,0.00017232,2]
[338854710,1726944651334,-258.604928,0.00017232,2]
[338854711,1726944651344,-390.772849,0.00017232,2]
[338854712,1726944651353,-735.210793,0.00017232,2]
[338854713,1726944651363,-794.793885,0.00017232,2]
[338854714,1726944651373,-313.922092,0.00017232,2]
[338854715,1726944651384,-185.260685,0.00017316,2]
[338854716,1726944651393,-185.260685,0.00017316,2]
[338854717,1726944651403,-378.017473,0.00017316,2]
[338854718,1726944651415,-378.017473,0.00017316,2]
[338854719,1726944651425,-151.0,0.00017316,2]
[338854720,1726944651434,-151.0,0.00017316,2]
[338854721,1726944651443,-151.0,0.00017316,2]
[338854722,1726944651454,-151.0,0.00017316,2]
[338854723,1726944651463,-1632.366505,0.00017316,2]
[338854724,1726944651472,-1632.366505,0.00017316,2]
[338854725,1726944651482,-342.459776,0.00017316,2]
[338854726,1726944651491,-342.459776,0.00017316,2]
[338854727,1726944651502,-500.0,0.00017348,2]
[338854728,1726944651511,-568.45,0.00017348,2]
[338854729,1726944651521,-500.0,0.00017348,2]
[338854730,1726944651531,-500.0,0.00017348,2]
[338854731,1726944651540,-194.24,0.00017348,2]
[338854732,1726944651549,-3310.21,0.00017348,2]
[338854733,1726944651559,-1788.69,0.00017348,2]
[338854734,1726944651569,-500.0,0.00017349,2]
[338854735,1726944651579,-500.0,0.00017349,2]
[338854736,1726944651589,-621.6,0.00017349,2]
[338854737,1726944651598,-200.0,0.00017349,2]
[338854738,1726944651608,-151.0,0.00017349,2]
[338854739,1726944651618,-151.0,0.00017349,2]
[338854740,1726944651627,-151.0,0.00017349,2]
[338854741,1726944651638,-151.0,0.00017349,2]
[338854742,1726944651647,-151.0,0.00017349,2]
[338854743,1726944651658,-500.0,0.00017349,2]
[338854744,1726944651667,-151.0,0.00017349,2]
[338854745,1726944651676,-223.654576,0.00017349,2]
[338854746,1726944651685,-223.654576,0.00017349,2]
[338854747,1726944651695,-259.476723,0.00017349,2]
[338854748,1726944651704,-259.476723,0.00017349,2]
[338854749,1726944651714,-1803.683025,0.00017349,2]
[338854750,1726944651723,-1803.683025,0.00017349,2]
[338854751,1726944651733,-1148.184544,0.00017349,2]
[338854752,1726944651742,-165.922108,0.00017349,2]
[338854753,1726944651751,-1044.43,0.00017349,2]
[338854754,1726944651761,-1148.184544,0.00017349,2]
[338854755,1726944651770,-165.922108,0.00017349,2]
[338854756,1726944651779,-151.0,0.00017349,2]
[338854757,1726944651789,-247.992498,0.00017349,2]
[338854758,1726944651798,-151.0,0.00017349,2]
[338854759,1726944651808,-247.992498,0.00017349,2]
[338854760,1726944651818,-151.0,0.00017349,2]
[338854761,1726944651830,-169.816527,0.00017349,2]
[338854762,1726944651839,-6582.0,0.00017349,2]
[338854763,1726944651848,-712.63,0.00017351,2]
[338854764,1726944651858,-500.0,0.00017351,2]
[338854765,1726944651868,-643.44,0.00017351,2]
[338854766,1726944651889,-509.81,0.0001736,2]
[338854767,1726944651898,-500.0,0.0001736,2]
[338854768,1726944651907,-832.77,0.0001736,2]
[338854769,1726944651917,-709.6,0.0001736,2]
[338854770,1726944651926,-151.0,0.0001736,2]
[338854771,1726944651935,-151.0,0.0001736,2]
[338854772,1726944651944,-151.0,0.0001736,2]
[338854773,1726944651954,-151.0,0.0001736,2]
[338854774,1726944651964,-500.0,0.0001736,2]
[338854775,1726944651974,-500.0,0.0001736,2]
[338854776,1726944651983,-500.0,0.0001736,2]
[338854777,1726944651992,-610.16,0.0001736,2]
[338854778,1726944652001,-500.0,0.0001736,2]
[338854779,1726944652010,-550.8,0.0001736,2]
[338854780,1726944652020,-500.0,0.00017362,2]
[338854781,1726944652030,-500.0,0.00017362,2]
[338854782,1726944652040,-500.0,0.00017362,2]
[338854783,1726944652049,-500.0,0.00017362,2]
[338854784,1726944652059,-500.0,0.00017362,2]
[338854785,1726944652069,-500.0,0.00017362,2]
[338854786,1726944652081,-796.7,0.00017409,2]
[338854787,1726944652091,-2500.0,0.00017438,2]
[338854788,1726944652101,-223.730771,0.0001744,2]
[338854789,1726944652111,-348.900287,0.0001744,2]
[338854790,1726944652123,-258.604928,0.0001744,2]
[338854791,1726944652132,-390.772849,0.0001744,2]
[338854792,1726944652141,-735.210793,0.0001744,2]
[338854793,1726944652152,-794.793885,0.0001744,2]
[338854794,1726944652161,-313.922092,0.0001744,2]
[338854795,1726944652171,-2500.0,0.00017447,2]
[338854796,1726944652180,-7140.47594759,0.0001745,2]
[338854797,1726944652189,-2500.0,0.00017456,2]
[338854798,1726944652198,-2500.0,0.00017465,2]
[338854799,1726944652208,-216.810795,0.00017465,2]
[338854800,1726944652216,-151.0,0.00017465,2]
[338854801,1726944652226,-812.830489,0.00017465,2]
[338854802,1726944652235,-2500.0,0.00017474,2]
[338854803,1726944652245,-2500.0,0.00017482,2]
[338854804,1726944652254,-2500.0,0.00017491,2]
[338854805,1726944652264,-2500.0,0.00017491,2]
[338854806,1726944652273,-2500.0,0.000175,2]
[338854807,1726944652282,-2317.7779218,0.000175,2]
[338854808,1726944652291,-1000.0,0.000175,2]
[338854809,1726944652302,-2500.0,0.000175,2]
[338854810,1726944652311,-1090.90957902,0.00017513,2]
[338854811,1726944652321,-163.70998331,0.00017565,2]
[338854812,1726944652330,-4764.0038281,0.00017565,2]
[338854813,1726944652339,-620.02062921,0.00017573,2]
[338854814,1726944652348,-2000.66059323,0.000176,2]
[338854815,1726944652358,-500.0,0.00017622,2]
[338854816,1726944652367,-568.45,0.00017622,2]
[338854817,1726944652376,-500.0,0.00017622,2]
[338854818,1726944652386,-500.0,0.00017622,2]
[338854819,1726944652396,-3310.21,0.00017622,2]
[338854820,1726944652405,-1788.69,0.00017622,2]
[338854821,1726944652415,-500.0,0.00017623,2]
[338854822,1726944652424,-500.0,0.00017623,2]
[338854823,1726944652434,-621.6,0.00017623,2]
[338854824,1726944652444,-200.0,0.00017623,2]
[338854825,1726944652453,-500.0,0.00017623,2]
[338854826,1726944652464,-1044.43,0.00017623,2]
[338854827,1726944652473,-6582.0,0.00017623,2]
[338854828,1726944652483,-712.63,0.00017625,2]
[338854829,1726944652493,-500.0,0.00017625,2]
[338854830,1726944652502,-643.44,0.00017625,2]
[338854831,1726944652512,-1974.7193064,0.00017625,2]
[338854832,1726944652521,-509.81,0.00017633,2]
[338854833,1726944652530,-500.0,0.00017633,2]
[338854834,1726944652540,-832.77,0.00017633,2]
[338854835,1726944652549,-709.6,0.00017633,2]
[338854836,1726944652559,-500.0,0.00017633,2]
[338854837,1726944652569,-500.0,0.00017633,2]
[338854838,1726944652579,-500.0,0.00017633,2]
[338854839,1726944652588,-610.16,0.00017633,2]
[338854840,1726944652598,-500.0,0.00017633,2]
[338854841,1726944652608,-550.8,0.00017633,2]
[338854842,1726944652617,-500.0,0.00017636,2]
[338854843,1726944652628,-500.0,0.00017636,2]
[338854844,1726944652638,-567.28729809,0.00017636,2]
[338854845,1726944652649,-500.0,0.00017636,2]
[338854846,1726944652658,-500.0,0.00017636,2]
[338854847,1726944652668,-151.0,0.00017636,2]
[338854848,1726944652677,-151.0,0.00017636,2]
[338854849,1726944652686,-500.0,0.00017636,2]
[338854850,1726944652695,-151.0,0.00017636,2]
[338854851,1726944652705,-151.0,0.00017636,2]
[338854852,1726944652714,-466.277736,0.00017636,2]
[338854853,1726944652723,-466.277736,0.00017636,2]
[338854854,1726944652733,-151.0,0.00017636,2]
[338854855,1726944652742,-151.0,0.00017678,2]
[338854856,1726944652752,-151.0,0.00017678,2]
[338854857,1726944652761,-151.0,0.00017678,2]
[338854858,1726944652771,-151.0,0.00017678,2]
[338854859,1726944652781,-10045.58466108,0.00017678,10]
[338854860,1726944652790,-796.7,0.00017733,2]
[338854861,1726944652799,-500.0,0.00017896,2]
[338854862,1726944652810,-568.45,0.00017896,2]
[338854863,1726944652819,-500.0,0.00017896,2]
[338854864,1726944652831,-500.0,0.00017896,2]
[338854865,1726944652840,-3310.21,0.00017896,2]
[338854866,1726944652851,-1788.69,0.00017896,2]
[338854867,1726944652862,-500.0,0.00017897,2]
[338854868,1726944652874,-500.0,0.00017897,2]
[338854869,1726944652884,-621.6,0.00017897,2]
[338854870,1726944652893,-200.0,0.00017897,2]
[338854871,1726944652904,-500.0,0.00017897,2]
[338854872,1726944652913,-1044.43,0.00017897,2]
[338854873,1726944652923,-6582.0,0.00017897,2]
[338854874,1726944652932,-712.63,0.00017899,2]
[338854875,1726944652941,-500.0,0.00017899,2]
[338854876,1726944652951,-643.44,0.00017899,2]
[338854877,1726944652959,-151.0,0.000179,2]
[338854878,1726944652968,-1054.933316,0.000179,2]
[338854879,1726944652979,-1054.933316,0.000179,2]
[338854880,1726944652987,-151.0,0.000179,2]
[338854881,1726944652998,-151.0,0.000179,2]
[338854882,1726944653008,-151.0,0.000179,2]
[338854883,1726944653018,-151.0,0.000179,2]
[338854884,1726944653028,-151.0,0.000179,2]
[338854885,1726944653037,-151.0,0.000179,2]
[338854886,1726944653049,-151.0,0.000179,2]
[338854887,1726944653060,-151.0,0.000179,2]
[338854888,1726944653069,-509.81,0.00017907,2]
[338854889,1726944653079,-500.0,0.00017907,2]
[338854890,1726944653089,-832.77,0.00017907,2]
[338854891,1726944653098,-709.6,0.00017907,2]
[338854892,1726944653108,-500.0,0.00017907,2]